fUSD/lending_fUSD_20260610
["ID","MTS","AMOUNT","RATE_DAILY","PERIOD"]
[424662988,1781035873000,-1023.17,0.00035322,30]
[424662989,1781035873000,-174.71291421,0.00035329,7]
[424662990,1781035873000,-593.60148306,0.00035329,7]
[424662984,1781035873000,-5890.83,0.00035306,14]
[424663029,1781035873000,-150.0,0.00035423,7]
[424663043,1781035873000,-464.931695,0.00035455,7]
[424663025,1781035873000,-174.71291421,0.00035401,7]
[424663069,1781035873000,-76405.01,0.000355,8]
[424663058,1781035873000,-150.0,0.00035462,7]
[424663061,1781035873000,-593.60148306,0.00035473,7]
[424663060,1781035873000,-174.71291421,0.00035473,7]
[424663063,1781035873000,-2000.0,0.0003548,7]
[424663068,1781035873000,-575.95,0.000355,8]
[424663067,1781035873000,-1000.0,0.000355,30]
[424663062,1781035873000,-150.0,0.00035474,7]
[424663065,1781035873000,-1000.0,0.000355,30]
[424663064,1781035873000,-150.0,0.00035487,7]
[424663066,1781035873000,-3000.0,0.000355,30]
[424663072,1781035873000,-235977.3,0.000355,8]
[424663070,1781035873000,-1045.39,0.000355,8]
[424663071,1781035873000,-10713.06,0.000355,8]
[424663075,1781035873000,-593.60148306,0.00035509,7]
[424663082,1781035873000,-150.0,0.00035539,7]
[424663076,1781035873000,-200.0,0.00035516,5]
[424663073,1781035873000,-150.0,0.000355,7]
[424663078,1781035873000,-518.433642,0.00035522,120]
[424663080,1781035873000,-8572.59,0.00035532,2]
[424663074,1781035873000,-174.71291421,0.00035509,7]
[424663079,1781035873000,-2371.06638376,0.00035527,7]
[424663081,1781035873000,-350.0,0.00035536,38]
[424663083,1781035873000,-174.71291421,0.00035544,7]
[424663084,1781035873000,-593.60148306,0.00035544,7]
[424663026,1781035873000,-593.60148306,0.00035401,7]
[424663077,1781035873000,-150.0,0.00035521,7]
[424663059,1781035873000,-7744.25728822,0.00035462,7]
[424663085,1781035873000,-1000.0,0.00035548,120]
[424663051,1781035873000,-323.37431,0.00035455,7]
[424663028,1781035873000,-150.0,0.00035422,7]
[424663030,1781035873000,-150.0,0.00035426,7]
[424663027,1781035873000,-8572.59,0.00035407,2]
[424663032,1781035873000,-593.60148306,0.00035437,7]
[424663033,1781035873000,-158.1996145,0.00035445,2]
[424663036,1781035873000,-50000.0,0.00035455,60]
[424663044,1781035873000,-151.0,0.00035455,7]
[424663050,1781035873000,-323.37431,0.00035455,7]
[424663037,1781035873000,-50000.0,0.00035455,120]
[424663035,1781035873000,-667.83,0.00035453,7]
[424663040,1781035873000,-464.931695,0.00035455,7]
[424663041,1781035873000,-464.931695,0.00035455,7]
[424663042,1781035873000,-464.931695,0.00035455,7]
[424663034,1781035873000,-200.0,0.00035451,5]
[424663086,1781035873000,-150.0,0.00035552,7]
[424663054,1781035873000,-314.45711,0.00035455,7]
[424663039,1781035873000,-50000.0,0.00035455,30]
[424663052,1781035873000,-314.45711,0.00035455,7]
[424663053,1781035873000,-314.45711,0.00035455,7]
[424663049,1781035873000,-323.37431,0.00035455,7]
[424663057,1781035873000,-422.37,0.0003546,88]
[424663055,1781035873000,-151.0,0.00035455,7]
[424663056,1781035873000,-314.45711,0.00035455,7]
[424663047,1781035873000,-151.0,0.00035455,7]
[424663046,1781035873000,-151.0,0.00035455,7]
[424663045,1781035873000,-151.0,0.00035455,7]
[424663038,1781035873000,-50000.0,0.00035455,90]
[424663048,1781035873000,-323.37431,0.00035455,7]
[424663130,1781035874000,-223.89524,0.00035616,7]
[424663124,1781035874000,-157.18333861,0.00035616,120]
[424663126,1781035874000,-1381.33,0.00035616,60]
[424663129,1781035874000,-151.0,0.00035616,7]
[424663121,1781035874000,-641.60457491,0.00035613,14]
[424663115,1781035874000,-1449.734447,0.0003561,7]
[424663128,1781035874000,-151.0,0.00035616,7]
[424663120,1781035874000,-403.018373,0.0003561,7]
[424663119,1781035874000,-403.018373,0.0003561,7]
[424663117,1781035874000,-403.018373,0.0003561,7]
[424663122,1781035874000,-151.0,0.00035613,14]
[424663123,1781035874000,-151.0,0.00035613,14]
[424663138,1781035874000,-159.05074,0.00035616,7]
[424663125,1781035874000,-1812.99,0.00035616,30]
[424663132,1781035874000,-236.697592,0.00035616,7]
[424663131,1781035874000,-151.0,0.00035616,7]
[424663133,1781035874000,-236.697592,0.00035616,7]
[424663135,1781035874000,-236.697592,0.00035616,7]
[424663134,1781035874000,-236.697592,0.00035616,7]
[424663136,1781035874000,-151.0,0.00035616,7]
[424663141,1781035874000,-151.0,0.00035616,7]
[424663137,1781035874000,-159.05074,0.00035616,7]
[424663140,1781035874000,-159.05074,0.00035616,7]
[424663139,1781035874000,-159.05074,0.00035616,7]
[424663113,1781035874000,-1449.734447,0.0003561,7]
[424663127,1781035874000,-2000.0,0.00035616,30]
[424663114,1781035874000,-1449.734447,0.0003561,7]
[424663099,1781035874000,-262.25395142,0.00035589,120]
[424663112,1781035874000,-171372.27166519,0.0003561,2]
[424663142,1781035874000,-151.0,0.00035616,7]
[424663088,1781035874000,-150.0,0.00035569,7]
[424663089,1781035874000,-200.0,0.00035575,5]
[424663091,1781035874000,-502.257271,0.00035579,120]
[424663090,1781035874000,-150.0,0.00035578,7]
[424663094,1781035874000,-2198.0,0.00035589,120]
[424663087,1781035874000,-921.84,0.00035564,30]
[424663092,1781035874000,-174.71291421,0.0003558,7]
[424663096,1781035874000,-161.0,0.00035589,120]
[424663095,1781035874000,-2278.0,0.00035589,120]
[424663106,1781035874000,-715.0,0.00035589,120]
[424663097,1781035874000,-2323.0,0.00035589,120]
[424663098,1781035874000,-810.0,0.00035589,120]
[424663100,1781035874000,-2447.0,0.00035589,120]
[424663102,1781035874000,-1399.5,0.00035589,120]
[424663101,1781035874000,-1399.5,0.00035589,120]
[424663103,1781035874000,-2124.0,0.00035589,120]
[424663105,1781035874000,-1449.0,0.00035589,120]
[424663104,1781035874000,-1449.0,0.00035589,120]
[424663108,1781035874000,-1329.70588235,0.00035589,120]
[424663107,1781035874000,-507.77344904,0.00035589,120]
[424663118,1781035874000,-403.018373,0.0003561,7]
[424663109,1781035874000,-1329.70588235,0.00035589,120]
[424663111,1781035874000,-4523.06341167,0.0003561,2]
[424663110,1781035874000,-201.33,0.00035606,120]
[424663116,1781035874000,-1449.734447,0.0003561,7]
[424663145,1781035874000,-151.0,0.00035616,7]
[424663093,1781035874000,-593.60148306,0.0003558,7]
[424663151,1781035874000,-205.377969,0.00035616,7]
[424663174,1781035874000,-300.0,0.00035616,5]
[424663176,1781035874000,-817.801717,0.00035616,7]
[424663177,1781035874000,-817.801717,0.00035616,7]
[424663178,1781035874000,-817.801717,0.00035616,7]
[424663179,1781035874000,-817.801717,0.00035616,7]
[424663181,1781035874000,-151.0,0.00035616,7]
[424663186,1781035874000,-3154.436987,0.00035616,7]
[424663182,1781035874000,-151.0,0.00035616,7]
[424663180,1781035874000,-151.0,0.00035616,7]
[424663183,1781035874000,-151.0,0.00035616,7]
[424663185,1781035874000,-257.322789,0.00035616,7]
[424663184,1781035874000,-3154.436987,0.00035616,7]
[424663189,1781035874000,-3154.436987,0.00035616,7]
[424663187,1781035874000,-652.891274,0.00035616,7]
[424663192,1781035874000,-3154.436987,0.00035616,7]
[424663188,1781035874000,-652.891274,0.00035616,7]
[424663195,1781035874000,-652.891274,0.00035616,7]
[424663194,1781035874000,-652.891274,0.00035616,7]
[424663193,1781035874000,-257.322789,0.00035616,7]
[424663190,1781035874000,-652.891274,0.00035616,7]
[424663191,1781035874000,-652.891274,0.00035616,7]
[424663200,1781035874000,-768.98023,0.00035616,7]
[424663196,1781035874000,-257.322789,0.00035616,7]
[424663197,1781035874000,-652.891274,0.00035616,7]
[424663198,1781035874000,-652.891274,0.00035616,7]
[424663168,1781035874000,-323.37431,0.00035616,7]
[424663167,1781035874000,-323.37431,0.00035616,7]
[424663199,1781035874000,-257.322789,0.00035616,7]
[424663170,1781035874000,-323.37431,0.00035616,7]
[424663175,1781035874000,-300.0,0.00035616,5]
[424663146,1781035874000,-151.0,0.00035616,7]
[424663152,1781035874000,-388.607731,0.00035616,7]
[424663153,1781035874000,-388.607731,0.00035616,7]
[424663143,1781035874000,-151.0,0.00035616,7]
[424663148,1781035874000,-388.607731,0.00035616,7]
[424663150,1781035874000,-388.607731,0.00035616,7]
[424663147,1781035874000,-151.0,0.00035616,7]
[424663149,1781035874000,-151.0,0.00035616,7]
[424663154,1781035874000,-1449.734447,0.00035616,7]
[424663155,1781035874000,-1449.734447,0.00035616,7]
[424663158,1781035874000,-464.931695,0.00035616,7]
[424663156,1781035874000,-1449.734447,0.00035616,7]
[424663144,1781035874000,-271.523992,0.00035616,7]
[424663162,1781035874000,-151.0,0.00035616,7]
[424663157,1781035874000,-1449.734447,0.00035616,7]
[424663166,1781035874000,-323.37431,0.00035616,7]
[424663171,1781035874000,-300.0,0.00035616,5]
[424663165,1781035874000,-151.0,0.00035616,7]
[424663169,1781035874000,-151.0,0.00035616,7]
[424663173,1781035874000,-300.0,0.00035616,5]
[424663160,1781035874000,-464.931695,0.00035616,7]
[424663159,1781035874000,-464.931695,0.00035616,7]
[424663164,1781035874000,-151.0,0.00035616,7]
[424663161,1781035874000,-464.931695,0.00035616,7]
[424663163,1781035874000,-151.0,0.00035616,7]
[424663172,1781035874000,-300.0,0.00035616,5]
[424663230,1781035875000,-281.0532509,0.00035616,7]
[424663236,1781035875000,-236.793631,0.00035616,30]
[424663228,1781035875000,-251.96802586,0.00035616,7]
[424663232,1781035875000,-185.84207243,0.00035616,7]
[424663227,1781035875000,-187.5236579,0.00035616,30]
[424663229,1781035875000,-174.71291421,0.00035616,7]
[424663231,1781035875000,-593.60148306,0.00035616,7]
[424663238,1781035875000,-151.0,0.00035616,30]
[424663237,1781035875000,-151.0,0.00035616,30]
[424663239,1781035875000,-151.0,0.00035616,30]
[424663244,1781035875000,-151.0,0.00035616,30]
[424663240,1781035875000,-151.0,0.00035616,30]
[424663241,1781035875000,-151.0,0.00035616,30]
[424663242,1781035875000,-151.0,0.00035616,30]
[424663245,1781035875000,-151.0,0.00035616,30]
[424663222,1781035875000,-1000.0,0.00035616,120]
[424663243,1781035875000,-151.0,0.00035616,30]
[424663247,1781035875000,-151.0,0.00035616,30]
[424663248,1781035875000,-151.0,0.00035616,30]
[424663246,1781035875000,-151.0,0.00035616,30]
[424663250,1781035875000,-151.0,0.00035616,30]
[424663254,1781035875000,-1831.35481406,0.00035616,2]
[424663252,1781035875000,-151.0,0.00035616,30]
[424663235,1781035875000,-213.220062,0.00035616,2]
[424663224,1781035875000,-800.0,0.00035616,120]
[424663219,1781035875000,-151.0,0.00035616,7]
[424663226,1781035875000,-306.87,0.00035616,120]
[424663256,1781035875000,-483070.05464834,0.00035616,2]
[424663209,1781035875000,-187.90066,0.00035616,7]
[424663201,1781035875000,-768.98023,0.00035616,7]
[424663202,1781035875000,-768.98023,0.00035616,7]
[424663204,1781035875000,-768.98023,0.00035616,7]
[424663205,1781035875000,-768.98023,0.00035616,7]
[424663203,1781035875000,-768.98023,0.00035616,7]
[424663206,1781035875000,-768.98023,0.00035616,7]
[424663207,1781035875000,-768.98023,0.00035616,7]
[424663208,1781035875000,-151.0,0.00035616,7]
[424663211,1781035875000,-151.0,0.00035616,7]
[424663221,1781035875000,-151522.9531194,0.00035616,6]
[424663214,1781035875000,-403.018373,0.00035616,7]
[424663217,1781035875000,-314.45711,0.00035616,7]
[424663210,1781035875000,-151.0,0.00035616,7]
[424663215,1781035875000,-403.018373,0.00035616,7]
[424663213,1781035875000,-403.018373,0.00035616,7]
[424663220,1781035875000,-314.45711,0.00035616,7]
[424663216,1781035875000,-314.45711,0.00035616,7]
[424663218,1781035875000,-314.45711,0.00035616,7]
[424663233,1781035875000,-151.56478511,0.00035616,7]
[424663223,1781035875000,-800.0,0.00035616,30]
[424663234,1781035875000,-179.43010993,0.00035616,7]
[424663225,1781035875000,-585.0,0.00035616,120]
[424663212,1781035875000,-403.018373,0.00035616,7]
[424663249,1781035875000,-151.0,0.00035616,30]
[424663253,1781035875000,-217.524606,0.00035616,30]
[424663283,1781035875000,-420.0,0.00035616,30]
[424663292,1781035875000,-341.716576,0.00035616,30]
[424663288,1781035875000,-341.716576,0.00035616,30]
[424663286,1781035875000,-420.0,0.00035616,30]
[424663293,1781035875000,-341.716576,0.00035616,30]
[424663291,1781035875000,-341.716576,0.00035616,30]
[424663290,1781035875000,-341.716576,0.00035616,30]
[424663287,1781035875000,-341.716576,0.00035616,30]
[424663285,1781035875000,-420.0,0.00035616,30]
[424663289,1781035875000,-341.716576,0.00035616,30]
[424663305,1781035875000,-151.0,0.00035616,30]
[424663294,1781035875000,-341.716576,0.00035616,30]
[424663296,1781035875000,-310.161318,0.00035616,30]
[424663297,1781035875000,-310.161318,0.00035616,30]
[424663302,1781035875000,-151.0,0.00035616,30]
[424663303,1781035875000,-310.161318,0.00035616,30]
[424663301,1781035875000,-151.0,0.00035616,30]
[424663298,1781035875000,-310.161318,0.00035616,30]
[424663304,1781035875000,-310.161318,0.00035616,30]
[424663299,1781035875000,-310.161318,0.00035616,30]
[424663300,1781035875000,-310.161318,0.00035616,30]
[424663306,1781035875000,-151.0,0.00035616,30]
[424663255,1781035875000,-1831.35481406,0.00035616,2]
[424663282,1781035875000,-420.0,0.00035616,30]
[424663284,1781035875000,-420.0,0.00035616,30]
[424663295,1781035875000,-310.161318,0.00035616,30]
[424663276,1781035875000,-158.846766,0.00035616,30]
[424663251,1781035875000,-151.0,0.00035616,30]
[424663275,1781035875000,-158.846766,0.00035616,30]
[424663257,1781035875000,-483070.05464834,0.00035616,2]
[424663260,1781035875000,-7029.88368986,0.00035616,2]
[424663261,1781035875000,-7029.88368986,0.00035616,2]
[424663263,1781035875000,-151.0,0.00035616,30]
[424663262,1781035875000,-151.0,0.00035616,30]
[424663264,1781035875000,-151.0,0.00035616,30]
[424663267,1781035875000,-151.0,0.00035616,30]
[424663258,1781035875000,-483070.05464834,0.00035616,2]
[424663266,1781035875000,-151.0,0.00035616,30]
[424663268,1781035875000,-151.0,0.00035616,30]
[424663259,1781035875000,-483070.05464834,0.00035616,2]
[424663269,1781035875000,-151.0,0.00035616,30]
[424663281,1781035875000,-420.0,0.00035616,30]
[424663270,1781035875000,-151.0,0.00035616,30]
[424663280,1781035875000,-420.0,0.00035616,30]
[424663271,1781035875000,-151.0,0.00035616,30]
[424663272,1781035875000,-151.0,0.00035616,30]
[424663273,1781035875000,-151.0,0.00035616,30]
[424663277,1781035875000,-158.846766,0.00035616,30]
[424663274,1781035875000,-169.226581,0.00035616,30]
[424663279,1781035875000,-420.0,0.00035616,30]
[424663265,1781035875000,-151.0,0.00035616,30]
[424663278,1781035875000,-158.846766,0.00035616,30]
[424663341,1781035876000,-151.646265,0.00035616,30]
[424663337,1781035876000,-396.114725,0.00035616,30]
[424663345,1781035876000,-226.578501,0.00035616,30]
[424663339,1781035876000,-151.646265,0.00035616,30]
[424663340,1781035876000,-226.578501,0.00035616,30]
[424663346,1781035876000,-226.578501,0.00035616,30]
[424663343,1781035876000,-396.114725,0.00035616,30]
[424663347,1781035876000,-151.0,0.00035616,30]
[424663336,1781035876000,-226.578501,0.00035616,30]
[424663338,1781035876000,-396.114725,0.00035616,30]
[424663342,1781035876000,-226.578501,0.00035616,30]
[424663344,1781035876000,-396.114725,0.00035616,30]
[424663360,1781035876000,-247.902819,0.00035616,30]
[424663351,1781035876000,-151.0,0.00035616,30]
[424663348,1781035876000,-151.0,0.00035616,30]
[424663357,1781035876000,-235.55475,0.00035616,30]
[424663353,1781035876000,-151.0,0.00035616,30]
[424663355,1781035876000,-151.0,0.00035616,30]
[424663354,1781035876000,-230.975701,0.00035616,30]
[424663356,1781035876000,-151.0,0.00035616,30]
[424663350,1781035876000,-151.0,0.00035616,30]
[424663358,1781035876000,-247.902819,0.00035616,30]
[424663370,1781035876000,-365.128439,0.00035616,30]
[424663361,1781035876000,-247.902819,0.00035616,30]
[424663333,1781035876000,-151.646265,0.00035616,30]
[424663352,1781035876000,-151.0,0.00035616,30]
[424663329,1781035876000,-151.646265,0.00035616,30]
[424663307,1781035876000,-151.0,0.00035616,30]
[424663331,1781035876000,-396.114725,0.00035616,30]
[424663371,1781035876000,-365.128439,0.00035616,30]
[424663310,1781035876000,-151.0,0.00035616,30]
[424663308,1781035876000,-151.0,0.00035616,30]
[424663309,1781035876000,-151.0,0.00035616,30]
[424663311,1781035876000,-387.926675,0.00035616,30]
[424663313,1781035876000,-151.0,0.00035616,30]
[424663324,1781035876000,-151.646265,0.00035616,30]
[424663323,1781035876000,-151.646265,0.00035616,30]
[424663320,1781035876000,-387.926675,0.00035616,30]
[424663321,1781035876000,-387.926675,0.00035616,30]
[424663318,1781035876000,-151.0,0.00035616,30]
[424663314,1781035876000,-151.0,0.00035616,30]
[424663312,1781035876000,-387.926675,0.00035616,30]
[424663316,1781035876000,-387.926675,0.00035616,30]
[424663319,1781035876000,-387.926675,0.00035616,30]
[424663317,1781035876000,-151.0,0.00035616,30]
[424663315,1781035876000,-387.926675,0.00035616,30]
[424663322,1781035876000,-387.926675,0.00035616,30]
[424663325,1781035876000,-396.114725,0.00035616,30]
[424663327,1781035876000,-226.578501,0.00035616,30]
[424663335,1781035876000,-151.646265,0.00035616,30]
[424663334,1781035876000,-226.578501,0.00035616,30]
[424663330,1781035876000,-226.578501,0.00035616,30]
[424663328,1781035876000,-151.646265,0.00035616,30]
[424663326,1781035876000,-396.114725,0.00035616,30]
[424663332,1781035876000,-396.114725,0.00035616,30]
[424663372,1781035876000,-365.128439,0.00035616,30]
[424663349,1781035876000,-151.0,0.00035616,30]
[424663366,1781035876000,-151.0,0.00035616,30]
[424663391,1781035876000,-165.264007,0.00035616,30]
[424663386,1781035876000,-165.264007,0.00035616,30]
[424663397,1781035876000,-263.984159,0.00035616,30]
[424663398,1781035876000,-489.24,0.00035616,2]
[424663400,1781035876000,-263.984159,0.00035616,30]
[424663403,1781035876000,-151.0,0.00035616,30]
[424663399,1781035876000,-263.984159,0.00035616,30]
[424663407,1781035876000,-296.239999,0.00035616,30]
[424663405,1781035876000,-275.253749,0.00035616,30]
[424663401,1781035876000,-263.984159,0.00035616,30]
[424663404,1781035876000,-280.767534,0.00035616,30]
[424663402,1781035876000,-263.984159,0.00035616,30]
[424663409,1781035876000,-296.239999,0.00035616,30]
[424663406,1781035876000,-275.253749,0.00035616,30]
[424663413,1781035876000,-200.337925,0.00035616,30]
[424663414,1781035876000,-296.239999,0.00035616,30]
[424663418,1781035876000,-275.253749,0.00035616,30]
[424663416,1781035876000,-200.337925,0.00035616,30]
[424663415,1781035876000,-275.253749,0.00035616,30]
[424663419,1781035876000,-296.239999,0.00035616,30]
[424663420,1781035876000,-151.0,0.00035616,30]
[424663417,1781035876000,-296.239999,0.00035616,30]
[424663411,1781035876000,-151.0,0.00035616,30]
[424663410,1781035876000,-200.337925,0.00035616,30]
[424663359,1781035876000,-247.902819,0.00035616,30]
[424663387,1781035876000,-334.864124,0.00035616,30]
[424663390,1781035876000,-165.264007,0.00035616,30]
[424663408,1781035876000,-200.337925,0.00035616,30]
[424663388,1781035876000,-165.264007,0.00035616,30]
[424663389,1781035876000,-165.264007,0.00035616,30]
[424663369,1781035876000,-151.0,0.00035616,30]
[424663362,1781035876000,-247.902819,0.00035616,30]
[424663368,1781035876000,-151.0,0.00035616,30]
[424663365,1781035876000,-247.902819,0.00035616,30]
[424663363,1781035876000,-247.902819,0.00035616,30]
[424663364,1781035876000,-247.902819,0.00035616,30]
[424663367,1781035876000,-151.0,0.00035616,30]
[424663379,1781035876000,-365.128439,0.00035616,30]
[424663384,1781035876000,-165.264007,0.00035616,30]
[424663381,1781035876000,-334.864124,0.00035616,30]
[424663377,1781035876000,-334.864124,0.00035616,30]
[424663378,1781035876000,-334.864124,0.00035616,30]
[424663373,1781035876000,-365.128439,0.00035616,30]
[424663395,1781035876000,-165.264007,0.00035616,30]
[424663392,1781035876000,-263.984159,0.00035616,30]
[424663412,1781035876000,-275.253749,0.00035616,30]
[424663385,1781035876000,-334.864124,0.00035616,30]
[424663396,1781035876000,-263.984159,0.00035616,30]
[424663393,1781035876000,-263.984159,0.00035616,30]
[424663382,1781035876000,-334.864124,0.00035616,30]
[424663394,1781035876000,-165.264007,0.00035616,30]
[424663375,1781035876000,-365.128439,0.00035616,30]
[424663383,1781035876000,-334.864124,0.00035616,30]
[424663376,1781035876000,-365.128439,0.00035616,30]
[424663380,1781035876000,-334.864124,0.00035616,30]
[424663374,1781035876000,-365.128439,0.00035616,30]
[424663460,1781035877000,-151.0,0.00035616,30]
[424663461,1781035877000,-215.130829,0.00035616,30]
[424663459,1781035877000,-289.358616,0.00035616,30]
[424663470,1781035877000,-151.0,0.00035616,30]
[424663455,1781035877000,-330.13217,0.00035616,30]
[424663456,1781035877000,-289.358616,0.00035616,30]
[424663452,1781035877000,-151.0,0.00035616,30]
[424663457,1781035877000,-151.0,0.00035616,30]
[424663449,1781035877000,-289.358616,0.00035616,30]
[424663451,1781035877000,-215.130829,0.00035616,30]
[424663468,1781035877000,-289.358616,0.00035616,30]
[424663448,1781035877000,-330.13217,0.00035616,30]
[424663469,1781035877000,-215.130829,0.00035616,30]
[424663481,1781035877000,-317.13489,0.00035616,30]
[424663462,1781035877000,-151.0,0.00035616,30]
[424663467,1781035877000,-330.13217,0.00035616,30]
[424663463,1781035877000,-151.0,0.00035616,30]
[424663464,1781035877000,-330.13217,0.00035616,30]
[424663465,1781035877000,-289.358616,0.00035616,30]
[424663473,1781035877000,-187.642023,0.00035616,30]
[424663472,1781035877000,-195.454791,0.00035616,30]
[424663471,1781035877000,-215.130829,0.00035616,30]
[424663474,1781035877000,-289.358616,0.00035616,30]
[424663475,1781035877000,-187.642023,0.00035616,30]
[424663479,1781035877000,-187.642023,0.00035616,30]
[424663482,1781035877000,-187.642023,0.00035616,30]
[424663458,1781035877000,-330.13217,0.00035616,30]
[424663466,1781035877000,-205.74421,0.00035616,30]
[424663454,1781035877000,-151.0,0.00035616,30]
[424663426,1781035877000,-296.239999,0.00035616,30]
[424663453,1781035877000,-151.0,0.00035616,30]
[424663431,1781035877000,-296.239999,0.00035616,30]
[424663476,1781035877000,-289.358616,0.00035616,30]
[424663427,1781035877000,-275.253749,0.00035616,30]
[424663425,1781035877000,-200.337925,0.00035616,30]
[424663429,1781035877000,-200.337925,0.00035616,30]
[424663424,1781035877000,-151.0,0.00035616,30]
[424663428,1781035877000,-151.0,0.00035616,30]
[424663423,1781035877000,-296.239999,0.00035616,30]
[424663430,1781035877000,-275.253749,0.00035616,30]
[424663433,1781035877000,-200.337925,0.00035616,30]
[424663421,1781035877000,-200.337925,0.00035616,30]
[424663432,1781035877000,-151.0,0.00035616,30]
[424663422,1781035877000,-275.253749,0.00035616,30]
[424663435,1781035877000,-151.0,0.00035616,30]
[424663446,1781035877000,-289.358616,0.00035616,30]
[424663445,1781035877000,-151.0,0.00035616,30]
[424663434,1781035877000,-151.0,0.00035616,30]
[424663443,1781035877000,-215.130829,0.00035616,30]
[424663436,1781035877000,-151.0,0.00035616,30]
[424663441,1781035877000,-151.0,0.00035616,30]
[424663442,1781035877000,-215.130829,0.00035616,30]
[424663437,1781035877000,-151.0,0.00035616,30]
[424663438,1781035877000,-151.0,0.00035616,30]
[424663444,1781035877000,-151.0,0.00035616,30]
[424663440,1781035877000,-330.13217,0.00035616,30]
[424663439,1781035877000,-330.13217,0.00035616,30]
[424663447,1781035877000,-151.0,0.00035616,30]
[424663450,1781035877000,-330.13217,0.00035616,30]
[424663477,1781035877000,-215.130829,0.00035616,30]
[424663478,1781035877000,-187.642023,0.00035616,30]
[424663493,1781035877000,-151.0,0.00035616,30]
[424663516,1781035877000,-151.0,0.00035616,30]
[424663518,1781035877000,-251.833972,0.00035616,30]
[424663515,1781035877000,-400.822031,0.00035616,30]
[424663514,1781035877000,-151.0,0.00035616,30]
[424663517,1781035877000,-251.833972,0.00035616,30]
[424663521,1781035877000,-400.822031,0.00035616,30]
[424663523,1781035877000,-251.833972,0.00035616,30]
[424663522,1781035877000,-400.822031,0.00035616,30]
[424663524,1781035877000,-251.833972,0.00035616,30]
[424663525,1781035877000,-400.822031,0.00035616,30]
[424663527,1781035877000,-151.0,0.00035616,30]
[424663530,1781035877000,-151.0,0.00035616,30]
[424663533,1781035877000,-151.0,0.00035616,30]
[424663513,1781035877000,-400.822031,0.00035616,30]
[424663531,1781035877000,-151.0,0.00035616,30]
[424663528,1781035877000,-151.0,0.00035616,30]
[424663529,1781035877000,-151.0,0.00035616,30]
[424663534,1781035877000,-151.0,0.00035616,30]
[424663535,1781035877000,-151.0,0.00035616,30]
[424663536,1781035877000,-151.0,0.00035616,30]
[424663541,1781035877000,-984.756473,0.00035616,30]
[424663539,1781035877000,-984.756473,0.00035616,30]
[424663537,1781035877000,-390.714487,0.00035616,30]
[424663540,1781035877000,-984.756473,0.00035616,30]
[424663538,1781035877000,-390.714487,0.00035616,30]
[424663543,1781035877000,-984.756473,0.00035616,30]
[424663480,1781035877000,-317.13489,0.00035616,30]
[424663542,1781035877000,-984.756473,0.00035616,30]
[424663532,1781035877000,-151.0,0.00035616,30]
[424663510,1781035877000,-500.0,0.00035616,30]
[424663526,1781035877000,-400.822031,0.00035616,30]
[424663511,1781035877000,-251.833972,0.00035616,30]
[424663483,1781035877000,-215.130829,0.00035616,30]
[424663508,1781035877000,-251.833972,0.00035616,30]
[424663494,1781035877000,-151.0,0.00035616,30]
[424663492,1781035877000,-317.13489,0.00035616,30]
[424663487,1781035877000,-187.642023,0.00035616,30]
[424663484,1781035877000,-317.13489,0.00035616,30]
[424663489,1781035877000,-187.642023,0.00035616,30]